bitfinex/quotes_ETHUSD_20251008
["timestamp","ask_amount","ask_price","bid_price","bid_amount"]
[1759944572103,0.1096,4538.1,4537.9,2.66499416]
[1759944572315,0.1096,4538.1,4537.9,4.10534282]
[1759944573022,0.1096,4538.1,4537.9,1.87964866]
[1759944573616,0.1096,4538.1,4538.0,2.20361392]
[1759944573820,0.1096,4538.1,4537.8,1e-08]
[1759944574000,0.1096,4538.1,4537.8,0.43930001]
[1759944574200,0.1096,4538.1,4537.9,0.4393]
[1759944574424,0.1096,4538.1,4537.9,2.64295703]
[1759944574612,0.1096,4538.1,4537.9,2.64295172]
[1759944574818,0.1096,4538.1,4537.9,0.4393]
[1759944575031,0.1096,4538.1,4537.9,2.64295241]
[1759944575198,0.1096,4538.1,4538.0,2.64291392]
[1759944575824,0.1096,4538.1,4538.0,0.4393]
[1759944576028,0.1096,4538.1,4537.8,1e-08]
[1759944576231,0.1096,4538.1,4537.9,0.4393]
[1759944576415,0.1096,4538.1,4538.0,2.64291392]
[1759944576806,0.1096,4538.1,4538.0,0.4393]
[1759944577112,0.1096,4538.1,4537.8,0.02203712]
[1759944577308,0.1096,4538.1,4537.9,0.4393]
[1759944577518,0.1096,4538.1,4538.0,0.4393]
[1759944577720,0.1096,4538.1,4538.0,2.64291392]
[1759944577948,0.002,4538.4,4538.3,2.20346825]
[1759944578103,0.002,4538.4,4538.3,8.53646825]
[1759944578443,0.002,4538.4,4538.3,9.90588508]
[1759944578933,0.002,4538.4,4538.3,3.13358508]
[1759944579229,0.002,4538.4,4538.3,21.36588508]
[1759944579630,0.002,4538.4,4538.3,18.72311683]
[1759944579858,0.002,4538.4,4538.3,17.793]
[1759944580023,0.002,4538.4,4538.3,20.43576825]
[1759944581636,0.002,4538.4,4538.3,20.54536825]
[1759944583745,0.002,4540.5,4538.8,2.20320218]
[1759944583904,0.002,4540.5,4539.2,2.291]
[1759944584101,0.1096,4540.3,4539.6,0.1096]
[1759944584319,0.1096,4540.3,4539.7,8.53474623]
[1759944584512,0.1096,4540.3,4539.8,9.167]
[1759944584924,0.1096,4540.3,4540.2,2.42964614]
[1759944585136,0.1096,4540.3,4540.2,8.8501]
[1759944585434,0.1096,4540.3,4540.2,10.20138152]
[1759944586336,2.31209763,4540.3,4540.2,2.291]
[1759944586511,2.31209763,4540.3,4540.2,8.623]
[1759944588145,0.1096,4540.3,4540.2,8.623]
[1759944588546,0.1096,4540.3,4540.2,9.0511]
[1759944588860,0.002,4540.5,4540.2,9.0511]
[1759944589023,0.1116,4540.5,4540.3,1.82171]
[1759944589360,0.1116,4540.5,4540.2,8.623]
[1759944589361,2.20449763,4540.3,4540.2,8.623]
[1759944589636,0.002,4540.3,4540.2,8.623]
[1759944589840,0.002,4540.3,4540.2,9.0511]
[1759944589841,0.1116,4540.3,4540.2,9.0511]
[1759944590055,2.31409763,4540.3,4540.2,8.623]
[1759944590260,0.1116,4540.3,4540.2,8.623]
[1759944590411,2.31409763,4540.3,4540.2,8.623]
[1759944590610,0.1116,4540.3,4540.2,8.623]
[1759944590859,2.31409763,4540.3,4540.2,8.623]
[1759944592671,0.1116,4540.3,4540.2,8.623]
[1759944593168,0.1116,4540.3,4540.2,18.2141]
[1759944593463,0.1116,4540.3,4540.2,17.786]
[1759944595363,0.002,4540.3,4540.2,18.2499]
[1759944595548,0.002,4540.3,4540.2,20.07489]
[1759944596161,0.002,4540.3,4540.2,18.2499]
[1759944599170,0.002,4540.3,4540.2,20.45244614]
[1759944599458,0.002,4540.3,4540.2,20.56204614]
[1759944600557,0.002,4540.5,4540.4,2.20244912]
[1759944600756,0.002,4540.5,4540.4,9.18707361]
[1759944600993,0.002,4541.3,4541.2,2.20206112]
[1759944601151,2.30190016,4544.3,4541.6,2.20186718]
[1759944601352,2.20113909,4543.2,4541.6,15.492]
[1759944601582,0.2363,4543.9,4542.1,2.43382479]
[1759944601765,0.099,4544.0,4542.1,11.05282479]
[1759944601965,0.11496878,4545.2,4542.1,13.45861905]
[1759944601966,2.20053372,4544.4,4542.1,13.45861905]
[1759944602193,0.26503705,4544.8,4542.1,13.45861905]
[1759944602401,2.2004865,4544.5,4542.1,13.45861905]
[1759944602560,0.1904,4544.8,4542.1,15.37861905]
[1759944602766,2.20042785,4544.6,4542.1,15.37861905]
[1759944603076,0.1904,4544.8,4542.1,15.37861905]
[1759944603387,0.2894,4544.8,4542.1,15.37861905]
[1759944603592,0.1904,4544.8,4542.1,15.37861905]
[1759944604294,0.099,4544.9,4542.1,15.37861905]
[1759944604813,1e-08,4542.3,4542.2,4.75517632]
[1759944605109,1e-08,4542.3,4542.2,5.21907632]
[1759944606162,1e-08,4542.3,4542.2,25.19747632]
[1759944606365,1e-08,4542.3,4542.2,16.59231274]
[1759944606578,1e-08,4542.3,4542.2,21.08388906]
[1759944607067,0.1849,4546.0,4542.2,23.63748906]
[1759944607268,0.1849,4546.0,4542.3,3.32212491]
[1759944607459,0.1849,4546.0,4544.0,2.29]
[1759944607662,0.11492235,4547.6,4544.0,2.29]
[1759944607663,0.1007,4546.7,4544.1,11.0651]
[1759944607868,2.19990247,4545.7,4544.7,2.20033916]
[1759944608079,2.19960955,4546.3,4544.8,6.7899]
[1759944608278,2.19953956,4546.5,4544.9,2.29]
[1759944608488,2.19993175,4545.6,4545.0,6.326]
[1759944608686,0.2847,4546.7,4545.0,6.326]
[1759944608687,0.2847,4546.7,4545.1,2.68607024]
[1759944608963,0.24840307,4546.6,4545.2,6.7899]
[1759944609214,2.19945086,4546.6,4545.3,6.81190074]
[1759944609478,2.19948775,4546.6,4545.7,2.19986903]
[1759944609700,2.19940292,4546.7,4545.8,18.25889832]
[1759944609907,2.19896208,4547.6,4545.9,9.6219]
[1759944610083,2.19934136,4546.9,4546.0,0.48589736]
[1759944610282,2.2038,4547.7,4546.1,6.34699687]
[1759944610283,0.2838,4547.7,4546.1,6.34699687]
[1759944610482,0.0875,4548.0,4546.2,0.48589639]
[1759944610689,2.19886538,4547.8,4546.3,0.0219959]
[1759944610908,2.19929347,4547.0,4546.4,4.338]
[1759944611210,2.19931281,4546.9,4546.5,0.02199494]
[1759944611416,2.19944573,4546.6,4546.4,4.338]
[1759944611699,2.19949411,4546.5,4546.4,4.338]
[1759944612807,2.19929093,4547.0,4546.4,4.338]
[1759944613015,0.21992909,4546.9,4546.4,4.338]
[1759944613194,2.19902306,4547.5,4546.4,4.338]
[1759944613195,2.19934899,4546.8,4546.5,0.48589494]
[1759944613501,0.099,4547.3,4545.3,0.4639]
[1759944613675,0.099,4547.3,4545.8,17.768]
[1759944613876,2.19959314,4546.3,4545.8,18.2319]
[1759944614084,1.92,4547.2,4545.9,0.4639]
[1759944614267,1.92,4547.2,4545.8,17.768]
[1759944614268,0.3009,4547.1,4545.8,17.768]
[1759944614467,2.19976385,4546.0,4545.8,17.768]
[1759944614672,2.19968957,4546.1,4545.8,18.2319]
[1759944614906,2.19973732,4546.0,4545.8,17.768]
[1759944615304,2.19973368,4546.1,4545.8,17.768]
[1759944615495,2.19973368,4546.1,4545.9,0.4639]
[1759944616010,2.19973368,4546.1,4545.8,17.768]
[1759944616011,2.19954052,4546.5,4545.8,17.768]
[1759944616218,0.099,4547.4,4546.0,0.4639]
[1759944616514,4.11910716,4547.3,4546.1,6.5542]
[1759944616722,2.19951536,4546.5,4546.2,0.4639]
[1759944616886,2.19955332,4546.4,4546.1,6.322]
[1759944617224,2.19966648,4546.2,4545.5,0.4639]
[1759944617513,2.19966648,4546.2,4545.6,17.764]
[1759944617884,0.31956,4547.4,4545.0,2.20018161]
[1759944617885,0.099,4546.8,4545.0,2.20018161]
[1759944618088,2.19984045,4545.8,4545.2,2.288]
[1759944618290,0.2019,4546.7,4545.2,2.288]
[1759944618291,2.1998888,4545.7,4545.2,2.288]
[1759944618487,2.2000264,4545.4,4545.3,0.4639]
[1759944618688,2.2000748,4545.3,4544.6,0.6961]
[1759944618888,2.2000748,4545.3,4544.7,12.636]
[1759944619289,2.20006856,4545.4,4544.7,12.636]
[1759944619681,2.19988987,4545.7,4544.7,12.636]
[1759944619682,0.099,4546.2,4544.8,0.4639]
[1759944619882,0.3009,4546.2,4544.8,0.4639]
[1759944620076,1.92,4546.6,4544.8,0.4639]
[1759944620308,2.38554687,4547.7,4544.8,0.4639]
[1759944620309,0.0999,4547.6,4544.9,0.02200268]
[1759944620515,0.0999,4547.6,4545.7,2.19987291]
[1759944620516,2.19947718,4546.6,4545.7,2.19987291]
[1759944620690,2.1990588,4547.4,4546.6,0.1096]
[1759944620691,0.1096,4547.4,4546.6,0.1096]
[1759944620887,0.02198,4548.5,4546.9,2.19930062]
[1759944621102,0.02198,4548.5,4547.0,9.6169]
[1759944621302,2.22052565,4548.5,4547.1,7.269]
[1759944621608,2.19862366,4548.3,4547.1,7.269]
[1759944621814,0.22205256,4548.4,4547.2,0.4639]
[1759944621977,2.19877605,4548.0,4547.2,0.4639]
[1759944622179,2.19828918,4549.0,4547.2,0.4639]
[1759944622387,1.19527474,4551.9,4547.1,7.269]
[1759944622388,1.19527474,4551.9,4548.9,9.153]
[1759944622389,0.58538313,4551.3,4548.9,9.153]
[1759944622579,0.58538313,4552.2,4550.8,2.288]
[1759944622814,0.20272881,4552.1,4550.8,0.4639]
[1759944623128,0.20272881,4552.1,4549.1,1.92]
[1759944623129,0.23994741,4552.0,4550.9,12.146]
[1759944623293,0.23994741,4552.0,4549.8,0.2322]
[1759944623294,0.8887777,4552.0,4549.8,0.2322]
[1759944623495,0.8887777,4552.0,4549.9,15.733]
[1759944623496,0.28946282,4551.9,4549.9,15.733]
[1759944623703,0.0868,4551.9,4550.0,0.21753695]
[1759944624018,0.0868,4551.9,4549.9,15.733]
[1759944624318,0.66067,4553.2,4550.2,2.19770057]
[1759944624319,0.099,4552.5,4550.2,2.19770057]
[1759944624503,0.099,4552.5,4550.0,0.64673339]
[1759944624504,0.099,4552.9,4550.3,0.64673339]
[1759944624704,0.099,4552.9,4549.9,17.37591]
[1759944624705,2.19649878,4552.7,4550.4,6.96673339]
[1759944624888,2.19649878,4552.7,4550.5,0.66870899]
[1759944625084,2.19649878,4552.7,4550.4,6.32]
[1759944625085,0.5,4553.4,4550.6,0.64677819]
[1759944625284,2.19620934,4553.3,4550.7,0.64677819]
[1759944625517,0.5,4553.4,4550.8,2.93377819]
[1759944625716,0.5,4553.4,4551.3,2.19715114]
[1759944625883,2.19620934,4553.3,4551.4,5.67047819]
[1759944626089,0.5,4553.4,4552.0,2.287]
[1759944626284,0.5,4553.4,4552.1,3.66217819]
[1759944626509,0.5,4553.4,4552.9,2.287]
[1759944626711,0.5,4553.4,4553.0,6.58677819]
[1759944627013,0.5,4553.4,4553.1,9.34447819]
[1759944627216,0.5,4553.4,4553.2,0.19547819]
[1759944627518,0.5,4553.4,4553.3,0.64677819]
[1759944628188,2.19620934,4553.3,4549.8,0.2322]
[1759944628389,0.37032093,4553.2,4550.5,0.2274]
[1759944628589,0.5,4553.4,4550.5,0.2274]
[1759944628590,0.5,4553.4,4551.0,2.286]
[1759944628822,2.19643287,4552.9,4551.6,2.19701719]
[1759944629017,2.19627008,4553.2,4551.7,11.2206813]
[1759944629316,0.5,4553.4,4551.9,2.286]
[1759944629516,0.5,4553.4,4552.5,2.19657943]
[1759944629686,0.5,4553.4,4552.6,6.7673]
[1759944629888,0.5,4553.4,4552.7,6.316]
[1759944630205,0.5,4553.4,4552.8,2.286]
[1759944630517,11.34016424,4553.1,4551.4,0.4513]
[1759944630688,1.54564218,4553.0,4551.5,17.746]
[1759944630886,1.92,4552.9,4551.6,0.02197029]
[1759944631085,0.1096,4552.3,4551.8,0.5]
[1759944631291,0.5,4553.4,4551.9,0.47326884]
[1759944631292,2.19620934,4553.3,4551.9,0.47326884]
[1759944631518,0.5,4553.4,4552.1,2.19675108]
[1759944631718,0.5,4553.4,4552.7,2.19649708]
[1759944631916,0.5,4553.4,4552.4,2.286]
[1759944631917,0.5,4553.4,4552.8,3.7353]
[1759944633191,0.5,4553.4,4552.8,3.284]
[1759944633192,0.76961592,4553.4,4552.8,3.284]
[1759944633392,0.5,4553.4,4552.8,3.284]
[1759944633820,0.5,4553.4,4551.8,0.5]
[1759944633821,1.92,4553.3,4551.8,0.5]
[1759944634022,0.5,4553.4,4551.8,0.5]
[1759944634023,0.5,4553.4,4551.9,16.963]
[1759944634321,2.19625757,4553.2,4551.9,16.963]
[1759944634503,1.92,4553.3,4551.9,16.963]
[1759944634696,2.19665437,4552.4,4551.9,16.963]
[1759944634895,2.19658757,4552.6,4552.0,0.4513]
[1759944635096,1.92,4553.1,4552.1,0.02196788]
[1759944635296,2.19666063,4552.4,4552.1,0.02196788]
[1759944635494,0.46161689,4553.2,4552.1,0.02196788]
[1759944635694,2.19664984,4552.4,4551.9,16.963]
[1759944635894,0.50778315,4553.1,4551.9,16.963]
[1759944636095,2.19683655,4552.0,4551.9,16.963]
[1759944637421,2.0207,4553.3,4551.9,16.963]
[1759944637741,2.19683655,4552.0,4551.9,16.963]
[1759944637936,0.1007,4553.3,4551.9,16.963]
[1759944638243,2.19672763,4552.3,4551.9,16.963]
[1759944638645,2.19675824,4552.2,4551.9,16.963]
[1759944638827,2.19668447,4552.4,4551.9,16.963]
[1759944639037,0.21966845,4552.4,4551.9,16.963]
[1759944639221,2.19669178,4552.3,4551.9,16.963]
[1759944639420,0.21966845,4552.4,4551.9,16.963]
[1759944639620,2.19625757,4553.2,4551.9,16.963]
[1759944639955,2.19680216,4552.1,4551.9,16.963]
[1759944640146,2.19683655,4552.0,4551.9,16.963]
[1759944640346,0.1007,4552.7,4551.9,16.963]
[1759944640518,2.1960989,4553.6,4552.0,0.02196836]
[1759944640716,2.18960989,4553.3,4551.9,16.963]
[1759944641057,2.19678375,4552.2,4551.9,16.963]
[1759944641213,2.196335,4553.1,4551.8,0.5]
[1759944641214,0.1007,4552.7,4551.8,0.5]
[1759944641418,0.1007,4552.7,4551.9,17.737]
[1759944641629,2.19688481,4551.9,4551.8,0.5]
[1759944641853,2.63625695,4551.9,4551.8,18.236]
[1759944642018,0.43937214,4551.9,4551.8,18.236]
[1759944642218,0.1096,4551.9,4551.8,18.6678]
[1759944642558,0.002,4552.1,4551.8,18.6678]
[1759944642758,0.002,4552.1,4551.9,0.4318]
[1759944642925,0.002,4552.1,4551.9,15.4318]
[1759944643120,0.002,4552.1,4552.0,18.1678]
[1759944643514,0.002,4552.1,4552.0,20.36463655]
[1759944643713,0.002,4552.1,4552.0,18.1678]
[1759944643945,0.002,4552.1,4552.0,20.36463655]
[1759944644155,0.002,4552.1,4552.0,18.1678]
[1759944644518,0.002,4552.1,4552.0,20.36463655]
[1759944644714,0.002,4552.6,4552.5,2.19659527]
[1759944645040,0.002,4552.6,4552.5,8.52956122]
[1759944645245,0.002,4552.6,4552.5,8.93939527]
[1759944649069,2.19530367,4555.2,4555.0,11.99197814]
[1759944649256,2.19530367,4555.2,4555.1,8.594]
[1759944649425,4.8562462,4555.2,4555.1,8.594]
[1759944649626,2.8363462,4555.2,4555.1,8.594]
[1759944650721,4.11534148,4555.1,4555.0,11.99197814]
[1759944650928,4.21524148,4555.1,4555.0,18.30097814]
[1759944651753,4.11534148,4555.1,4555.0,18.30097814]
[1759944651935,4.81051025,4555.1,4555.0,18.30097814]
[1759944653669,4.91041025,4555.1,4555.0,18.30097814]
[1759944654176,4.91041025,4555.1,4554.2,2.284]
[1759944654177,2.19543788,4554.9,4554.2,2.284]
[1759944654360,0.79506877,4555.1,4554.3,8.592]
[1759944654361,2.1956789,4554.4,4554.3,8.592]
[1759944654562,2.1959682,4553.8,4553.7,9.137]
[1759944654775,2.63515481,4553.8,4553.7,17.729]
[1759944655073,0.43918661,4553.8,4553.7,17.729]
[1759944655377,0.0999,4554.9,4553.7,17.729]
[1759944655577,0.0999,4554.9,4553.8,0.02195968]
[1759944655776,2.19510053,4555.6,4553.9,6.308]
[1759944655945,0.1096,4554.1,4553.9,6.308]
[1759944656280,2.19587176,4554.0,4553.9,6.308]
[1759944657076,0.55002527,4554.0,4553.9,8.592]
[1759944657260,0.55002527,4554.0,4551.3,0.6336]
[1759944657261,0.55002527,4554.0,4553.3,2.284]
[1759944657460,2.19611288,4553.5,4553.4,6.308]
[1759944657644,2.19620934,4553.3,4553.2,2.284]
[1759944657845,2.19620934,4553.3,4553.2,8.592]
[1759944658792,2.19620934,4553.3,4552.9,2.284]
[1759944658793,0.1096,4553.2,4552.9,2.284]
[1759944658945,4.11635405,4553.0,4552.9,2.284]
[1759944659142,2.19680521,4552.1,4551.5,0.1096]
[1759944659346,0.1096,4552.3,4551.6,17.728]
[1759944659569,0.1096,4551.8,4551.6,17.728]
[1759944659771,0.1096,4551.8,4551.6,18.1761]
[1759944660091,0.1096,4551.8,4551.7,0.47006981]
[1759944660247,0.0999,4553.4,4551.7,0.4481]
[1759944660448,0.0999,4553.4,4552.8,0.001]
[1759944660654,0.0999,4553.4,4552.9,8.591]
[1759944660655,4.11635405,4553.0,4552.9,8.591]
[1759944661845,2.19582354,4554.1,4552.9,9.0391]
[1759944662072,0.1096,4553.1,4552.9,9.0391]
[1759944662277,0.1096,4553.1,4552.9,8.591]
[1759944662777,0.1096,4553.1,4553.0,0.4481]
[1759944663348,0.1096,4553.1,4553.0,0.47006354]
[1759944663657,2.19608309,4553.6,4553.0,0.5577]
[1759944663851,0.1096,4553.8,4553.0,0.5577]
[1759944664282,2.19611017,4553.6,4553.0,0.5577]
[1759944664480,2.19611017,4553.6,4552.8,0.001]
[1759944664481,0.45016802,4553.6,4553.1,17.729]
[1759944664656,0.1096,4553.3,4553.2,6.32996257]
[1759944664861,0.1096,4553.3,4553.2,6.7561]
[1759944665268,0.1096,4553.7,4553.2,6.7561]
[1759944665582,2.19567938,4554.4,4553.2,6.308]
[1759944665776,2.19613789,4553.5,4553.2,6.308]
[1759944665969,2.19620934,4553.3,4553.2,6.308]
[1759944666174,2.19588105,4554.0,4552.8,0.001]
[1759944666376,11.34016424,4554.7,4552.8,0.001]
[1759944666377,2.19597051,4553.8,4552.9,13.7341]
[1759944666577,0.47202388,4555.3,4553.1,2.19626625]
[1759944666778,2.19538968,4555.0,4553.2,6.307]
[1759944666978,0.20487385,4554.9,4553.2,6.307]
[1759944667287,0.0999,4555.2,4553.3,0.4481]
[1759944667498,0.23171248,4555.1,4553.4,0.91709268]
[1759944667660,0.23171248,4555.1,4553.7,2.19599757]
[1759944667859,0.23171248,4555.1,4553.8,4.4321]
[1759944668055,0.23171248,4555.1,4553.8,3.984]
[1759944668387,0.002,4555.1,4553.9,0.47005919]
[1759944668588,2.19568047,4554.4,4553.9,0.47005919]
[1759944668891,2.19568047,4554.4,4554.0,0.6821]
[1759944669093,2.19558575,4554.6,4554.1,0.4481]
[1759944669260,2.19563559,4554.5,4554.2,6.7551]
[1759944669588,2.19558752,4554.6,4554.3,0.4481]
[1759944669791,0.002,4555.1,4554.4,0.4481]
[1759944670092,0.002,4555.1,4554.5,8.137]
[1759944670293,0.002,4555.1,4554.6,6.307]
[1759944670480,0.002,4555.1,4554.7,2.284]
[1759944670785,0.002,4555.1,4554.7,2.7321]
[1759944671087,0.002,4555.1,4554.8,0.4481]
[1759944671291,0.002,4555.1,4554.9,9.136]
[1759944671494,0.002,4555.1,4554.9,18.1751]
[1759944671702,0.002,4555.1,4555.0,0.4481]
[1759944672199,0.002,4555.1,4555.0,18.1741]
[1759944672887,0.002,4555.1,4555.0,20.36948968]
[1759944673087,0.002,4555.1,4555.0,18.1741]
[1759944673260,0.002,4555.1,4555.0,20.36948968]
[1759944673699,0.002,4555.1,4555.0,22.62126013]
[1759944673910,0.002,4555.1,4555.0,20.92587045]
[1759944674085,0.002,4555.1,4555.0,18.6741]
[1759944674281,0.002,4555.1,4555.0,27.8101]
[1759944674677,0.002,4555.1,4555.0,30.00548968]
[1759944676507,0.002,4555.1,4555.0,30.11508968]
[1759944678610,0.002,4555.1,4555.0,30.74868968]
[1759944678812,0.002,4555.1,4555.0,33.00046013]
[1759944680212,0.002,4555.1,4555.0,32.89086013]
[1759944680389,0.002,4555.1,4555.0,33.00046013]
[1759944680591,0.002,4556.1,4555.1,0.6336]
[1759944680791,0.003,4556.5,4555.1,0.6336]
[1759944680792,0.003,4556.5,4556.0,2.283]
[1759944680993,0.003,4556.5,4556.4,0.3436]
[1759944681192,0.003,4556.5,4556.4,5.0766]
[1759944681405,0.003,4556.5,4556.1,0.4481]
[1759944681406,2.19766695,4556.5,4556.1,0.234]
[1759944681727,0.003,4556.5,4556.4,9.133]
[1759944681925,0.003,4556.5,4556.4,9.6907]
[1759944682095,0.003,4556.5,4556.4,0.1096]
[1759944682299,0.003,4556.5,4556.4,12.6211]
[1759944682496,0.003,4556.5,4556.4,14.81581512]
[1759944682831,0.003,4556.5,4556.4,16.32079663]
[1759944683032,0.003,4556.5,4556.4,0.4481]
[1759944683248,0.003,4556.5,4556.4,18.1661]
[1759944683897,0.003,4556.5,4556.4,20.36081512]
[1759944685229,0.003,4556.5,4556.4,18.1661]
[1759944685597,0.003,4556.5,4556.4,18.183]
[1759944685798,0.003,4556.5,4555.8,0.465]
[1759944686036,0.21975964,4556.4,4556.2,0.465]
[1759944686193,0.003,4556.5,4556.3,3.166]
[1759944686395,0.003,4556.5,4556.4,6.32494715]
[1759944686594,2.19766695,4556.5,4556.4,6.768]
[1759944686900,0.003,4556.5,4556.4,6.768]
[1759944687100,2.19766695,4556.5,4556.4,6.268]
[1759944687509,2.19766695,4556.5,4555.9,0.465]
[1759944687510,2.19473241,4556.4,4555.9,0.465]
[1759944687728,0.44221962,4556.5,4556.0,17.715]
[1759944687942,0.44221962,4556.5,4556.1,2.68178532]
[1759944688106,0.003,4556.5,4556.1,0.48694859]
[1759944688441,0.003,4556.5,4556.2,0.465]
[1759944688601,0.003,4556.5,4556.3,6.32394763]
[1759944688802,0.003,4556.5,4556.3,6.767]
[1759944689005,0.003,4556.5,4556.4,0.465]
[1759944689333,0.003,4556.5,4555.8,0.2206]
[1759944689533,2.19496207,4555.9,4555.4,0.6856]
[1759944689705,2.19490443,4556.1,4555.5,12.54]
[1759944689903,0.43896196,4556.1,4554.9,0.465]
[1759944690102,2.19534148,4555.1,4554.9,9.131]
[1759944690332,2.19534148,4555.1,4555.0,3.596]
[1759944690730,0.099,4555.9,4555.0,3.096]
[1759944690902,2.19534148,4555.1,4555.0,3.096]
[1759944691229,2.19769349,4556.5,4555.0,3.096]
[1759944691230,0.099,4556.2,4555.0,3.096]
[1759944691428,0.099,4556.2,4555.0,3.11795389]
[1759944691802,2.19490781,4556.0,4553.8,2.19596191]
[1759944692130,2.19490781,4556.0,4551.9,2.19785707]
[1759944692131,2.19505235,4555.7,4553.9,14.2]
[1759944692333,2.19577519,4554.3,4553.9,11.413]
[1759944692574,2.30529664,4554.4,4554.0,6.302]
[1759944692914,1.92,4554.9,4553.6,0.5746]
[1759944692915,2.19585364,4554.1,4553.6,0.465]
[1759944693112,0.1096,4554.1,4553.7,17.715]
[1759944693422,2.19587283,4554.0,4553.7,18.18]
[1759944693735,2.195545,4554.7,4553.8,0.465]
[1759944694054,2.19541922,4555.0,4553.8,0.465]
[1759944694055,2.19546945,4554.9,4553.9,17.63087875]
[1759944694343,0.099,4556.0,4554.0,6.303]
[1759944694344,2.19500417,4555.8,4554.0,6.303]
[1759944694506,2.19500417,4555.8,4554.1,0.6856]
[1759944694712,1.92,4555.6,4554.1,0.6856]
[1759944695015,2.33150524,4555.5,4553.5,0.465]
[1759944695244,2.33150524,4555.5,4553.6,17.718]
[1759944695245,2.2941969,4555.4,4553.6,17.718]
[1759944695402,2.19525863,4555.3,4553.7,0.48696016]
[1759944695606,0.41150524,4555.5,4553.7,0.48696016]
[1759944695607,0.41150524,4555.5,4553.8,2.19592497]
[1759944695845,0.41150524,4555.5,4554.1,0.5]
[1759944696047,0.41150524,4555.5,4554.2,3.89155775]
[1759944696048,0.23315052,4555.4,4554.2,3.89155775]
[1759944696395,0.099,4556.6,4554.4,2.19567853]
[1759944696528,2.19508711,4555.7,4554.8,2.19548478]
[1759944696728,2.19499274,4555.9,4554.9,8.96542972]
[1759944696930,0.003,4556.5,4555.0,2.66038861]
[1759944697160,0.003,4556.5,4555.0,0.465]
[1759944697362,2.19496005,4555.9,4555.1,2.19529396]
[1759944697562,0.003,4556.5,4555.2,9.61895293]
[1759944697868,0.005,4556.5,4555.5,2.19510498]
[1759944698038,0.005,4556.5,4555.3,6.309]
[1759944698039,0.005,4556.5,4555.6,2.283]
[1759944698436,0.005,4556.5,4555.7,2.66001202]
[1759944698632,0.005,4556.5,4555.8,6.313]
[1759944699264,0.005,4556.5,4555.9,2.19493074]
[1759944699449,0.005,4556.5,4555.8,6.313]
[1759944699960,2.19472264,4556.4,4555.8,6.313]
[1759944700161,2.19967903,4556.5,4555.8,6.313]
[1759944700364,0.005,4556.5,4555.9,0.465]
[1759944700678,0.005,4556.5,4556.4,0.2206]
[1759944700827,0.005,4556.5,4556.4,6.5326]
[1759944701028,0.005,4556.5,4556.4,6.9976]
[1759944701654,0.005,4556.5,4556.4,9.19231512]
[1759944701854,0.005,4556.5,4556.4,6.9976]
[1759944702056,0.005,4556.5,4556.4,9.64052244]
[1759944702375,0.005,4556.5,4556.4,21.74453584]
[1759944702677,0.005,4556.5,4556.4,18.4111]
[1759944703757,0.005,4556.5,4556.4,20.71541512]
[1759944703955,0.005,4556.5,4556.4,18.5207]
[1759944704557,0.005,4556.5,4556.4,20.71541512]
[1759944705687,0.005,4556.5,4556.4,20.60581512]
[1759944706338,0.005,4556.5,4556.4,22.85758557]
[1759944707478,2.19393059,4558.1,4556.4,22.85758557]
[1759944707479,0.00388904,4559.0,4556.4,22.72647045]
[1759944707648,0.00388904,4559.0,4557.9,2.282]
[1759944707835,0.00388904,4559.0,4558.0,15.453]
[1759944708037,0.00388904,4559.0,4556.5,0.6336]
[1759944708338,2.19375045,4558.5,4557.4,0.4605]
[1759944708571,2.19351159,4558.9,4557.5,2.766]
[1759944708739,0.00388904,4559.0,4557.6,0.4605]
[1759944708940,2.19739713,4559.0,4557.8,2.19404098]
[1759944709173,0.00388904,4559.0,4557.9,0.4605]
[1759944709339,0.00388904,4559.0,4558.2,2.19380845]
[1759944709541,0.00388904,4559.0,4558.0,17.734]
[1759944709853,0.00388904,4559.0,4558.9,2.40791159]
[1759944710060,0.00388904,4559.0,4558.9,11.01091159]
[1759944710376,0.00388904,4559.0,4558.9,11.47141159]
[1759944710547,0.00388904,4559.0,4558.9,9.2779]
[1759944710738,0.00388904,4559.0,4558.9,11.47141159]
[1759944710944,0.00388904,4559.0,4558.9,12.837913]
[1759944711247,0.00388904,4559.0,4558.9,0.6749]
[1759944711466,0.00388904,4559.0,4558.9,18.4089]
[1759944712957,0.00388904,4559.0,4558.3,0.4605]
[1759944713169,0.00388904,4559.0,4558.4,17.75393752]
[1759944713369,2.19352319,4558.9,4558.4,17.732]
[1759944713587,0.00388904,4559.0,4558.5,0.4658]
[1759944713791,0.00388904,4559.0,4558.4,17.732]
[1759944714160,2.19370406,4558.5,4558.4,17.732]
[1759944714360,2.63243783,4558.5,4558.4,17.732]
[1759944714892,0.53863377,4558.5,4556.5,0.4658]
[1759944715078,0.0999,4558.5,4557.2,9.128]
[1759944715279,2.19421345,4557.5,4557.3,6.324]
[1759944715588,1.92,4558.9,4557.4,0.4658]
[1759944715765,0.1096,4558.0,4557.5,2.282]
[1759944715970,0.1096,4558.0,4557.6,6.7888]
[1759944716359,0.1096,4558.0,4556.5,2.19466247]
[1759944716360,0.23035398,4558.0,4555.9,0.2144]
[1759944716560,2.19449519,4556.9,4556.5,0.4658]
[1759944716897,0.1096,4557.2,4556.6,2.7478]
[1759944717074,2.19441886,4557.1,4556.6,2.7478]
[1759944717269,2.19441886,4557.1,4556.7,0.001]
[1759944717470,2.194378,4557.1,4556.7,0.001]
[1759944717874,0.1096,4557.2,4556.8,0.4658]